bitfinex/quotes_BTCUSD_20250604
["timestamp","ask_amount","ask_price","bid_price","bid_amount"]
[1749008702083,0.40454085,105590.0,105580.0,0.01500202]
[1749008702316,0.55798928,105590.0,105580.0,0.35060268]
[1749008702535,0.54095809,105590.0,105580.0,0.33580716]
[1749008702757,0.65620135,105590.0,105580.0,0.24596716]
[1749008702987,0.71882365,105590.0,105580.0,0.62864716]
[1749008703208,0.71882365,105590.0,105580.0,0.24596716]
[1749008703426,0.69845965,105590.0,105580.0,0.62864716]
[1749008703646,0.70751112,105590.0,105580.0,0.62864716]
[1749008704349,0.73656899,105590.0,105580.0,0.62864716]
[1749008704567,0.71882125,105590.0,105580.0,0.62864716]
[1749008704777,0.72647665,105590.0,105580.0,0.62864716]
[1749008704999,0.721269,105590.0,105580.0,0.62864716]
[1749008705249,0.70352125,105590.0,105580.0,0.62864716]
[1749008705456,0.70452125,105590.0,105580.0,0.62864716]
[1749008706118,0.71117663,105590.0,105580.0,0.62864716]
[1749008706336,0.72226894,105590.0,105580.0,0.62864716]
[1749008707001,0.75795798,105590.0,105580.0,0.62864716]
[1749008707214,0.75130257,105590.0,105580.0,0.62864716]
[1749008707421,0.73613373,105590.0,105580.0,0.62864716]
[1749008707873,0.7538815,105590.0,105580.0,0.62864716]
[1749008708088,0.73613373,105590.0,105580.0,0.62864716]
[1749008708300,0.7538815,105590.0,105580.0,0.62864716]
[1749008708726,0.73613373,105590.0,105580.0,0.62864716]
[1749008708945,0.65061243,105590.0,105580.0,0.62864716]
[1749008709194,0.18252749,105590.0,105580.0,0.66124716]
[1749008709625,0.17306162,105590.0,105580.0,0.66124716]
[1749008709911,0.14402799,105590.0,105580.0,0.66124716]
[1749008710133,0.16343079,105590.0,105580.0,0.66124716]
[1749008711048,0.14402799,105590.0,105580.0,0.66124716]
[1749008711512,0.16177193,105590.0,105580.0,0.66124716]
[1749008711787,0.14402799,105590.0,105580.0,0.66124716]
[1749008712014,0.16177192,105590.0,105580.0,0.66124716]
[1749008712279,0.14402799,105590.0,105580.0,0.66124716]
[1749008712502,0.16177191,105590.0,105580.0,0.66124716]
[1749008712937,0.14402799,105590.0,105580.0,0.66124716]
[1749008713166,0.14402799,105590.0,105580.0,0.34626323]
[1749008713377,0.16177179,105590.0,105580.0,0.34626323]
[1749008713618,0.14402799,105590.0,105580.0,0.34626323]
[1749008714114,0.16177179,105590.0,105580.0,0.34626323]
[1749008714495,0.14402799,105590.0,105580.0,0.63898323]
[1749008715365,0.14402799,105590.0,105580.0,0.91158323]
[1749008715587,0.1617718,105590.0,105580.0,0.91158323]
[1749008715753,0.14402799,105590.0,105580.0,0.91158323]
[1749008716142,0.1617718,105590.0,105580.0,0.91158323]
[1749008716366,0.1617718,105590.0,105580.0,0.92718323]
[1749008716567,0.20173508,105590.0,105580.0,0.92718323]
[1749008718031,0.21947889,105590.0,105580.0,0.92718323]
[1749008718443,0.20173508,105590.0,105580.0,0.92718323]
[1749008718857,0.21947889,105590.0,105580.0,0.92718323]
[1749008719059,0.20173508,105590.0,105580.0,0.92718323]
[1749008720131,0.23002016,105590.0,105580.0,0.92718323]
[1749008720340,0.24776397,105590.0,105580.0,0.92718323]
[1749008720550,0.17231307,105590.0,105580.0,0.92718323]
[1749008722086,0.14402799,105590.0,105580.0,0.92718323]
[1749008723347,0.15307763,105590.0,105580.0,0.92718323]
[1749008723566,0.14402799,105590.0,105580.0,0.92718323]
[1749008723783,0.17083306,105590.0,105580.0,0.92718323]
[1749008724017,0.15308924,105590.0,105580.0,0.92718323]
[1749008724655,0.22948558,105590.0,105580.0,0.63446323]
[1749008724915,0.18857688,105590.0,105580.0,0.92650323]
[1749008725332,0.17083306,105590.0,105580.0,0.92650323]
[1749008725727,0.17951563,105590.0,105580.0,0.92650323]
[1749008725989,0.16177181,105590.0,105580.0,0.92650323]
[1749008726203,0.05523533,105590.0,105580.0,0.92650323]
[1749008726640,0.03749151,105590.0,105580.0,0.92650323]
[1749008727087,0.03649151,105590.0,105580.0,0.92650323]
[1749008727294,0.03549151,105590.0,105580.0,0.92650323]
[1749008727507,0.05423276,105590.0,105580.0,0.92650323]
[1749008727721,0.03649151,105590.0,105580.0,0.92650323]
[1749008728779,0.05423256,105590.0,105580.0,0.92650323]
[1749008728987,0.03649151,105590.0,105580.0,0.92650323]
[1749008729198,0.05423254,105590.0,105580.0,0.92650323]
[1749008729412,0.03649151,105590.0,105580.0,0.92650323]
[1749008730730,0.05423258,105590.0,105580.0,0.92650323]
[1749008730980,0.03649151,105590.0,105580.0,0.92650323]
[1749008732075,0.05423258,105590.0,105580.0,0.63446323]
[1749008732296,0.03649151,105590.0,105580.0,0.92638323]
[1749008732737,0.0542326,105590.0,105580.0,0.92638323]
[1749008732948,0.03649151,105590.0,105580.0,0.92638323]
[1749008733165,0.05423262,105590.0,105580.0,0.92638323]
[1749008733377,0.03649151,105590.0,105580.0,0.92638323]
[1749008734001,0.05423259,105590.0,105580.0,0.92638323]
[1749008734217,0.03649151,105590.0,105580.0,0.92638323]
[1749008734695,0.05423258,105590.0,105580.0,0.92638323]
[1749008734907,0.03649151,105590.0,105580.0,0.92638323]
[1749008737354,0.03649151,105590.0,105580.0,0.54462323]
[1749008737575,0.05423275,105590.0,105580.0,0.92662323]
[1749008737797,0.03649151,105590.0,105580.0,0.92662323]
[1749008739115,0.05423275,105590.0,105580.0,0.92662323]
[1749008739333,0.03649151,105590.0,105580.0,0.92662323]
[1749008739558,0.03649151,105590.0,105580.0,0.54462323]
[1749008739775,0.03649151,105590.0,105580.0,0.60828]
[1749008739993,0.03649151,105590.0,105580.0,0.89984]
[1749008740225,0.50284581,105590.0,105580.0,0.89984]
[1749008740468,0.54032858,105590.0,105580.0,0.89984]
[1749008740686,0.66422198,105590.0,105580.0,0.60828]
[1749008740901,0.69009129,105590.0,105580.0,0.60828]
[1749008741112,0.34,105580.0,105560.0,0.04729683]
[1749008741326,0.4509543,105580.0,105570.0,0.38204]
[1749008741541,0.46001707,105580.0,105570.0,0.38204]
[1749008741770,0.46266273,105580.0,105570.0,0.38204]
[1749008741986,0.44491707,105580.0,105570.0,0.41454]
[1749008742169,0.4358543,105580.0,105570.0,0.41454]
[1749008742882,0.45359992,105580.0,105570.0,0.41554]
[1749008743092,0.46266269,105580.0,105570.0,0.41554]
[1749008743304,0.46266297,105580.0,105570.0,0.41554]
[1749008743525,0.44491735,105580.0,105570.0,0.41554]
[1749008743759,0.45359992,105580.0,105570.0,0.41754]
[1749008743982,0.44491735,105580.0,105570.0,0.41754]
[1749008744199,0.45359992,105580.0,105570.0,0.41754]
[1749008744433,0.46266297,105580.0,105570.0,0.41754]
[1749008744666,0.44491735,105580.0,105570.0,0.41754]
[1749008744885,0.46266297,105580.0,105570.0,0.41754]
[1749008745144,0.44491735,105580.0,105570.0,0.41754]
[1749008745360,0.4358543,105580.0,105570.0,0.93542]
[1749008745569,0.45359992,105580.0,105570.0,0.93542]
[1749008745798,0.44491735,105580.0,105570.0,0.93542]
[1749008746004,0.4358543,105580.0,105570.0,0.93542]
[1749008747074,0.45359966,105580.0,105570.0,0.93542]
[1749008747288,0.47333654,105580.0,105570.0,0.93542]
[1749008748360,0.49108186,105580.0,105570.0,0.93542]
[1749008748577,0.47333654,105580.0,105570.0,0.93542]
[1749008748795,0.49108185,105580.0,105570.0,0.93542]
[1749008749008,0.47333654,105580.0,105570.0,0.93542]
[1749008749657,0.49108185,105580.0,105570.0,0.93542]
[1749008749860,0.47333654,105580.0,105570.0,0.93542]
[1749008750132,0.49108184,105580.0,105570.0,0.93542]
[1749008750357,0.47333654,105580.0,105570.0,0.52088]
[1749008750588,0.47333654,105580.0,105570.0,0.90268]
[1749008751840,0.49108184,105580.0,105570.0,0.90268]
[1749008752095,0.47333654,105580.0,105570.0,0.61124]
[1749008752326,0.49108184,105580.0,105570.0,0.90268]
[1749008752538,0.47333654,105580.0,105570.0,0.90268]
[1749008753802,0.49108184,105580.0,105570.0,0.90268]
[1749008754010,0.47333654,105580.0,105570.0,0.90268]
[1749008755056,0.49108184,105580.0,105570.0,0.90268]
[1749008755283,0.4910771,105580.0,105570.0,0.90268]
[1749008755514,0.4733318,105580.0,105570.0,0.90268]
[1749008756258,0.4910771,105580.0,105570.0,0.90268]
[1749008756454,0.4733318,105580.0,105570.0,0.90268]
[1749008756659,0.4910771,105580.0,105570.0,0.90268]
[1749008756883,0.4733318,105580.0,105570.0,0.90268]
[1749008757079,0.4910771,105580.0,105570.0,0.90268]
[1749008757320,0.4733318,105580.0,105570.0,0.90268]
[1749008758483,0.4910771,105580.0,105570.0,0.90268]
[1749008758701,0.4733318,105580.0,105570.0,0.90268]
[1749008759343,0.47333274,105580.0,105570.0,0.90268]
[1749008760320,0.47333274,105580.0,105570.0,0.90272]
[1749008761024,0.49107804,105580.0,105570.0,0.90272]
[1749008761239,0.47333274,105580.0,105570.0,0.90272]
[1749008761475,0.47333423,105580.0,105570.0,0.90272]
[1749008761905,0.49107953,105580.0,105570.0,0.90272]
[1749008762110,0.4642773,105580.0,105570.0,0.90272]
[1749008762280,0.47333457,105580.0,105570.0,0.90272]
[1749008763999,0.49107987,105580.0,105570.0,0.90272]
[1749008764155,0.47333457,105580.0,105570.0,0.90272]
[1749008765453,0.49107987,105580.0,105570.0,0.90272]
[1749008765679,0.47333457,105580.0,105570.0,0.61124]
[1749008765880,0.47333457,105580.0,105570.0,0.90272]
[1749008766414,0.47333457,105580.0,105570.0,0.93382]
[1749008766861,0.49107987,105580.0,105570.0,0.90272]
[1749008767402,0.47333457,105580.0,105570.0,0.90272]
[1749008767615,0.37748027,105580.0,105570.0,0.93422]
[1749008767850,0.39522557,105580.0,105570.0,0.93422]
[1749008768059,0.37748027,105580.0,105570.0,0.93422]
[1749008768480,0.39522557,105580.0,105570.0,0.93422]
[1749008768693,0.37748027,105580.0,105570.0,0.93422]
[1749008769364,0.39522533,105580.0,105570.0,0.93422]
[1749008769770,0.37748027,105580.0,105570.0,0.93422]
[1749008770186,0.37750279,105580.0,105570.0,0.93422]
[1749008770410,0.39524784,105580.0,105570.0,0.93422]
[1749008770625,0.37750279,105580.0,105570.0,0.93422]
[1749008772408,0.39524757,105580.0,105570.0,0.93422]
[1749008772609,0.00907979,105580.0,105570.0,0.93422]
[1749008772900,0.39122591,105590.0,105570.0,0.90272]
[1749008773545,0.39122591,105590.0,105580.0,0.0315]
[1749008774178,0.39122338,105590.0,105580.0,0.0315]
[1749008774995,0.39222338,105590.0,105580.0,0.0315]
[1749008775202,0.40996634,105590.0,105580.0,0.0315]
[1749008775404,0.40996633,105590.0,105580.0,0.0315]
[1749008775672,0.39222338,105590.0,105580.0,0.0315]
[1749008777536,0.38314612,105590.0,105580.0,0.0315]
[1749008777739,0.40996635,105590.0,105580.0,0.0315]
[1749008777941,0.39222338,105590.0,105580.0,0.0315]
[1749008778368,0.38314612,105590.0,105580.0,0.0315]
[1749008778774,0.4008891,105590.0,105580.0,0.0315]
[1749008779185,0.38314612,105590.0,105580.0,0.0315]
[1749008779596,0.40088911,105590.0,105580.0,0.0315]
[1749008780013,0.40088911,105590.0,105580.0,0.29144]
[1749008780222,0.40996678,105590.0,105580.0,0.29144]
[1749008780431,0.57225414,105590.0,105580.0,0.08988]
[1749008780692,0.65544346,105590.0,105580.0,0.38132]
[1749008780920,0.64435371,105590.0,105580.0,0.38132]
[1749008781138,0.64435374,105590.0,105580.0,0.38132]
[1749008781358,0.66612054,105590.0,105580.0,0.38132]
[1749008781579,0.67277474,105590.0,105580.0,0.38132]
[1749008781810,0.66612054,105590.0,105580.0,0.38132]
[1749008782043,0.68386507,105590.0,105580.0,0.38132]
[1749008782245,0.66611314,105590.0,105580.0,0.38132]
[1749008782450,0.67276734,105590.0,105580.0,0.38132]
[1749008782670,0.63228121,105590.0,105580.0,0.38132]
[1749008782872,0.61453668,105590.0,105580.0,0.38132]
[1749008783314,0.62119088,105590.0,105580.0,0.38132]
[1749008783525,0.54002142,105590.0,105580.0,0.38132]
[1749008783753,0.59902356,105590.0,105580.0,0.38132]
[1749008784176,0.60567776,105590.0,105580.0,0.38132]
[1749008784418,0.68227611,105590.0,105580.0,0.38132]
[1749008784632,0.70226945,105590.0,105580.0,0.62664]
[1749008785270,0.66101184,105590.0,105580.0,0.62664]
[1749008785493,0.64326731,105590.0,105580.0,0.62664]
[1749008786156,0.64328423,105590.0,105580.0,0.62664]
[1749008786794,0.66102876,105590.0,105580.0,0.62664]
[1749008786986,0.64328423,105590.0,105580.0,0.62664]
[1749008787623,0.66102876,105590.0,105580.0,0.62664]
[1749008787861,0.64328423,105590.0,105580.0,0.62664]
[1749008788339,0.66102876,105590.0,105580.0,0.62664]
[1749008788570,0.64328423,105590.0,105580.0,0.62664]
[1749008788787,0.64993832,105590.0,105580.0,0.62664]
[1749008789215,0.64328423,105590.0,105580.0,0.62664]
[1749008789415,0.64328423,105590.0,105580.0,0.8992]
[1749008789533,0.64993837,105590.0,105580.0,0.8992]
[1749008789765,0.64328423,105590.0,105580.0,0.8992]
[1749008790216,0.64328853,105590.0,105580.0,0.8992]
[1749008790420,0.66103293,105590.0,105580.0,0.8992]
[1749008790586,0.64328853,105590.0,105580.0,0.8992]
[1749008790820,0.66768708,105590.0,105580.0,0.8992]
[1749008791026,0.64328853,105590.0,105580.0,0.8992]
[1749008791442,0.64994268,105590.0,105580.0,0.8992]
[1749008791644,0.64328853,105590.0,105580.0,0.8992]
[1749008792057,0.66103293,105590.0,105580.0,0.8992]
[1749008792260,0.64328853,105590.0,105580.0,0.8992]
[1749008792769,0.64994268,105590.0,105580.0,0.8992]
[1749008792968,0.64328853,105590.0,105580.0,0.8992]
[1749008793179,0.65495353,105590.0,105580.0,0.89916]
[1749008794225,0.64329306,105590.0,105580.0,0.89916]
[1749008794425,0.61462551,105590.0,105580.0,0.89916]
[1749008795267,0.62127966,105590.0,105580.0,0.89916]
[1749008795493,0.59822551,105590.0,105580.0,0.89916]
[1749008795991,0.60487966,105590.0,105580.0,0.89916]
[1749008796207,0.59822551,105590.0,105580.0,0.89916]
[1749008796415,0.60487959,105590.0,105580.0,0.89916]
[1749008796612,0.59822551,105590.0,105580.0,0.89916]
[1749008797612,0.61596982,105590.0,105580.0,0.89916]
[1749008797813,0.59822551,105590.0,105580.0,0.89916]
[1749008798283,0.59822979,105590.0,105580.0,0.89916]
[1749008798536,0.61597388,105590.0,105580.0,0.89916]
[1749008798746,0.61752508,105590.0,105580.0,0.89916]
[1749008798966,0.61087104,105590.0,105580.0,0.89916]
[1749008799823,0.62861502,105590.0,105580.0,0.89916]
[1749008800030,0.61087104,105590.0,105580.0,0.89916]
[1749008800449,0.58202979,105590.0,105580.0,0.89916]
[1749008800656,0.48617549,105590.0,105580.0,0.93106]
[1749008801894,0.50391876,105590.0,105580.0,0.93106]
[1749008802100,0.48617627,105590.0,105580.0,0.93106]
[1749008802511,0.50391955,105590.0,105580.0,0.93106]
[1749008802726,0.48617627,105590.0,105580.0,0.93106]
[1749008804172,0.50391955,105590.0,105580.0,0.93106]
[1749008804375,0.48617627,105590.0,105580.0,0.93106]
[1749008804606,0.50391955,105590.0,105580.0,0.93106]
[1749008804808,0.48617627,105590.0,105580.0,0.93106]
[1749008806272,0.48618003,105590.0,105580.0,0.93106]
[1749008807306,0.45775903,105590.0,105580.0,0.93106]
[1749008807512,0.47550207,105590.0,105580.0,0.93106]
[1749008807721,0.47550208,105590.0,105580.0,0.93106]
[1749008807926,0.45775903,105590.0,105580.0,0.93106]
[1749008809413,0.47550207,105590.0,105580.0,0.93106]
[1749008809635,0.45775903,105590.0,105580.0,0.93106]
[1749008810294,0.38314612,105590.0,105580.0,0.93106]
[1749008810532,0.40088914,105590.0,105580.0,0.93106]
[1749008810753,0.38314612,105590.0,105580.0,0.93106]
[1749008810973,0.40088914,105590.0,105580.0,0.93106]
[1749008811460,0.38314612,105590.0,105580.0,0.93106]
[1749008811676,0.40088914,105590.0,105580.0,0.93106]
[1749008812076,0.38314612,105590.0,105580.0,0.93106]
[1749008812305,0.40088914,105590.0,105580.0,0.93106]
[1749008812558,0.38314612,105590.0,105580.0,0.93106]
[1749008812784,0.45776827,105590.0,105580.0,0.93106]
[1749008813489,0.47551131,105590.0,105580.0,0.93106]
[1749008813709,0.45776827,105590.0,105580.0,0.93106]
[1749008814377,0.47551386,105590.0,105580.0,0.93106]
[1749008814612,0.45777082,105590.0,105580.0,0.93106]
[1749008815075,0.47551386,105590.0,105580.0,0.93106]
[1749008815285,0.45777082,105590.0,105580.0,0.93106]
[1749008816632,0.44869356,105590.0,105580.0,0.93106]
[1749008816856,0.40088916,105590.0,105580.0,0.93106]
[1749008817080,0.38314612,105590.0,105580.0,0.93106]
[1749008817526,0.39222316,105590.0,105580.0,0.93106]
[1749008817785,0.45777603,105590.0,105580.0,0.93106]
[1749008818676,0.45777611,105590.0,105580.0,0.93106]
[1749008819814,0.45777611,105590.0,105580.0,0.89916]
[1749008820450,0.45777611,105590.0,105580.0,0.93196]
[1749008821340,0.4577838,105590.0,105580.0,0.93196]
[1749008821595,0.45778442,105590.0,105580.0,0.93196]
[1749008822384,0.47552746,105590.0,105580.0,0.93196]
[1749008822596,0.45778442,105590.0,105580.0,0.93196]
[1749008823771,0.47552746,105590.0,105580.0,0.93196]
[1749008823970,0.45778442,105590.0,105580.0,0.93196]
[1749008824621,0.47552746,105590.0,105580.0,0.93196]
[1749008824821,0.45778442,105590.0,105580.0,0.93196]
[1749008825431,0.47552763,105590.0,105580.0,0.93196]
[1749008825653,0.45778459,105590.0,105580.0,0.93196]
[1749008826385,0.45778459,105590.0,105580.0,0.64056]
[1749008826635,0.45778459,105590.0,105580.0,0.89908]
[1749008826839,0.47552763,105590.0,105580.0,0.89908]
[1749008827046,0.45778459,105590.0,105580.0,0.89908]
[1749008828481,0.47552764,105590.0,105580.0,0.89908]
[1749008828622,0.45778459,105590.0,105580.0,0.89908]
[1749008829294,0.44870716,105590.0,105580.0,0.91538]
[1749008829460,0.45778748,105590.0,105580.0,0.93168]
[1749008830664,0.39222644,105590.0,105580.0,0.93168]
[1749008831529,0.4099683,105590.0,105580.0,0.93168]
[1749008831781,0.39222644,105590.0,105580.0,0.93168]
[1749008833347,0.4099683,105590.0,105580.0,0.93168]
[1749008833562,0.38314612,105590.0,105580.0,0.93168]
[1749008833993,0.04314612,105590.0,105580.0,0.93168]
[1749008834220,0.06088722,105590.0,105580.0,0.93168]
[1749008834446,0.04314612,105590.0,105580.0,0.93168]
[1749008834905,0.04314612,105590.0,105580.0,0.94136968]
[1749008835114,0.04313913,105590.0,105580.0,0.94136968]
[1749008835325,0.02539843,105590.0,105580.0,0.94136968]
[1749008836191,0.04313913,105590.0,105580.0,0.94136968]
[1749008836399,0.02539843,105590.0,105580.0,0.94136968]
[1749008838543,0.02539843,105590.0,105580.0,0.93168]
[1749008838927,0.04313913,105590.0,105580.0,0.93168]
[1749008839131,0.02539843,105590.0,105580.0,0.93168]
[1749008839817,0.02539843,105590.0,105580.0,0.94126964]
[1749008840453,0.04313913,105590.0,105580.0,0.94126964]
[1749008840661,0.02539843,105590.0,105580.0,0.94126964]
[1749008840886,0.02539843,105590.0,105580.0,0.93168]
[1749008841647,0.04313913,105590.0,105580.0,0.93168]
[1749008841859,0.02539843,105590.0,105580.0,0.93168]
[1749008842890,0.02539843,105590.0,105580.0,0.94099852]
[1749008843301,0.30910626,105600.0,105580.0,0.94099852]
[1749008844359,0.30910626,105600.0,105580.0,0.93168]
[1749008844991,0.30910626,105600.0,105590.0,0.29124]
[1749008846283,0.31010626,105600.0,105590.0,0.29124]
[1749008846710,0.31210626,105600.0,105590.0,0.29124]
[1749008846937,0.31210626,105600.0,105590.0,0.381]
[1749008850147,0.0346,105600.0,105590.0,0.38096]
[1749008850584,0.3716,105590.0,105580.0,0.51788]
[1749008851073,0.3716,105590.0,105580.0,0.89884]
[1749008851715,0.40908664,105590.0,105580.0,0.89884]
[1749008852834,0.4090886,105590.0,105580.0,0.89884]
[1749008853905,0.4090886,105590.0,105580.0,0.51788]
[1749008854120,0.59841023,105590.0,105580.0,0.60764]
[1749008854332,0.59841023,105590.0,105580.0,0.89884]
[1749008854744,0.59841023,105590.0,105580.0,0.51788]
[1749008854969,0.59841023,105590.0,105580.0,0.89884]
[1749008855834,0.61615501,105590.0,105580.0,0.89884]
[1749008856044,0.59841023,105590.0,105580.0,0.89884]
[1749008856463,0.60974598,105590.0,105580.0,0.89884]
[1749008856677,0.60973826,105590.0,105580.0,0.89884]
[1749008856867,0.62748352,105590.0,105580.0,0.89884]
[1749008857126,0.60973826,105590.0,105580.0,0.89884]
[1749008857351,0.59840251,105590.0,105580.0,0.89884]
[1749008858031,0.69176578,105590.0,105580.0,0.51788]
[1749008858279,0.69176578,105590.0,105580.0,0.62628]
[1749008858280,0.72342472,105590.0,105580.0,0.62628]
[1749008858500,0.726043,105590.0,105580.0,0.38096]
[1749008858721,0.72836341,105590.0,105580.0,0.38096]
[1749008858911,0.78477468,105590.0,105580.0,0.38096]
[1749008859152,0.78477494,105590.0,105580.0,0.38096]
[1749008859375,0.76902766,105590.0,105580.0,0.38096]
[1749008860254,0.70154099,105590.0,105580.0,0.38096]
[1749008860470,0.70150492,105590.0,105580.0,0.38096]
[1749008861113,0.70250492,105590.0,105580.0,0.38096]
[1749008861323,0.71382012,105590.0,105580.0,0.38096]
[1749008861548,0.7315677,105590.0,105580.0,0.38096]
[1749008861754,0.79132485,105590.0,105580.0,0.38096]
[1749008862181,0.80907243,105590.0,105580.0,0.38096]
[1749008862644,0.79132485,105590.0,105580.0,0.38096]
[1749008863325,0.79132485,105590.0,105580.0,0.381]
[1749008863546,0.77619644,105590.0,105580.0,0.381]
[1749008863773,0.74157231,105590.0,105580.0,0.381]
[1749008863985,0.7761621,105590.0,105580.0,0.381]
[1749008864407,0.77354716,105590.0,105580.0,0.381]
[1749008864652,0.77615262,105590.0,105580.0,0.381]
[1749008864865,0.79390013,105590.0,105580.0,0.381]
[1749008865080,0.79390023,105590.0,105580.0,0.381]
[1749008865297,0.77615262,105590.0,105580.0,0.62632]
[1749008867243,0.79390024,105590.0,105580.0,0.62632]
[1749008867454,0.71639551,105590.0,105580.0,0.62632]
[1749008867669,0.73414313,105590.0,105580.0,0.62632]
[1749008867880,0.71639551,105590.0,105580.0,0.62632]
[1749008868531,0.7163896,105590.0,105580.0,0.62632]
[1749008868746,0.80728903,105590.0,105580.0,0.62632]
[1749008868986,0.7895414,105590.0,105580.0,0.62632]
[1749008869210,0.75496703,105590.0,105580.0,0.24532]
[1749008869444,0.73721939,105590.0,105580.0,0.62636]
[1749008869684,0.75496702,105590.0,105580.0,0.62636]
[1749008869945,0.73721939,105590.0,105580.0,0.62636]
[1749008870164,0.80726826,105590.0,105580.0,0.62636]
[1749008870385,0.71636884,105590.0,105580.0,0.62636]
[1749008871669,0.74976063,105590.0,105580.0,0.62636]
[1749008872569,0.74974792,105590.0,105580.0,0.62636]
[1749008873060,0.76749558,105590.0,105580.0,0.62636]
[1749008873303,0.74974792,105590.0,105580.0,0.62636]
[1749008873771,0.82622988,105590.0,105580.0,0.62636]
[1749008874509,0.82622988,105590.0,105580.0,0.24532]
[1749008874739,0.82622988,105590.0,105580.0,0.62632]
[1749008875269,0.84397755,105590.0,105580.0,0.62632]
[1749008875506,0.84130151,105590.0,105580.0,0.62632]
[1749008876608,0.84129378,105590.0,105580.0,0.24532]
[1749008876822,0.84129378,105590.0,105580.0,0.62632]
[1749008877866,0.84129378,105590.0,105580.0,0.24532]
[1749008878080,0.76481182,105590.0,105580.0,0.62632]
[1749008878283,0.77124709,105590.0,105580.0,0.08976]
[1749008878917,0.75349943,105590.0,105580.0,0.08976]
[1749008879135,0.84659709,105590.0,105580.0,0.08976]
[1749008879337,0.84659713,105590.0,105580.0,0.381]
[1749008879568,0.82884937,105590.0,105580.0,0.381]
[1749008880618,0.84661033,105590.0,105580.0,0.381]
[1749008880819,0.82886257,105590.0,105580.0,0.381]
[1749008881022,0.75351263,105590.0,105580.0,0.381]
[1749008881203,0.77126031,105590.0,105580.0,0.381]
[1749008881408,0.75351263,105590.0,105580.0,0.381]
[1749008881640,0.69688692,105590.0,105580.0,0.381]
[1749008881853,0.75354789,105590.0,105580.0,0.381]
[1749008882055,0.82890268,105590.0,105580.0,0.381]
[1749008882255,0.84665042,105590.0,105580.0,0.381]
[1749008882668,0.86439817,105590.0,105580.0,0.381]
[1749008882886,0.84665042,105590.0,105580.0,0.381]
[1749008883092,0.86439817,105590.0,105580.0,0.381]
[1749008883313,0.84665646,105590.0,105580.0,0.381]
[1749008883573,0.86440421,105590.0,105580.0,0.381]
[1749008883798,0.84665646,105590.0,105580.0,0.08976]
[1749008883997,0.84665646,105590.0,105580.0,0.381]
[1749008884428,0.8315477,105590.0,105580.0,0.381]
[1749008884641,0.09584085,105580.0,105560.0,4.806e-05]
[1749008884852,0.46173781,105570.0,105560.0,4.806e-05]
[1749008885067,0.57375262,105570.0,105560.0,0.38104806]
[1749008885270,0.47080363,105570.0,105560.0,0.62640806]
[1749008885488,0.49923163,105570.0,105560.0,0.62640806]
[1749008885908,0.51698096,105570.0,105560.0,0.33516806]
[1749008886115,0.56054182,105570.0,105560.0,0.62640806]
[1749008886333,0.53210452,105570.0,105560.0,0.62740806]
[1749008886533,0.51435518,105570.0,105560.0,0.62740806]
[1749008886751,0.51435518,105570.0,105560.0,0.62640806]
[1749008886962,0.52404119,105570.0,105560.0,0.62640806]
[1749008887173,0.51536795,105570.0,105560.0,0.62640806]
[1749008887379,0.5331173,105570.0,105560.0,0.62640806]
[1749008887613,0.51636795,105570.0,105560.0,0.62640806]
[1749008888379,0.5341173,105570.0,105560.0,0.62640806]
[1749008888601,0.58627813,105570.0,105560.0,0.62640806]
[1749008889182,0.60402748,105570.0,105560.0,0.62640806]
[1749008889607,0.58627813,105570.0,105560.0,0.62640806]
[1749008889988,0.60402748,105570.0,105560.0,0.62640806]
[1749008890232,0.51636795,105570.0,105560.0,0.62640806]
[1749008890435,0.58170854,105570.0,105560.0,0.62640806]
[1749008891002,0.58172243,105570.0,105560.0,0.62640806]
[1749008891218,0.59947174,105570.0,105560.0,0.62640806]
[1749008891432,0.5817338,105570.0,105560.0,0.62640806]
[1749008892270,0.67081649,105570.0,105560.0,0.62640806]
[1749008892478,0.65306718,105570.0,105560.0,0.62640806]
[1749008892870,0.5817338,105570.0,105560.0,0.62640806]
[1749008893116,0.59948311,105570.0,105560.0,0.62640806]
[1749008893323,0.5817338,105570.0,105560.0,0.62640806]
[1749008894295,0.56661025,105570.0,105560.0,0.62640806]
[1749008894502,0.58435956,105570.0,105560.0,0.62640806]
[1749008894707,0.56661025,105570.0,105560.0,0.62640806]
[1749008895115,0.56660744,105570.0,105560.0,0.62640806]
[1749008895334,0.65568985,105570.0,105560.0,0.62640806]
[1749008895534,0.63794054,105570.0,105560.0,0.62640806]
[1749008896254,0.63794054,105570.0,105560.0,0.33516806]
[1749008896480,0.63794054,105570.0,105560.0,0.62644806]
[1749008897353,0.56660744,105570.0,105560.0,0.62644806]
[1749008898236,0.56660744,105570.0,105560.0,0.33516]
[1749008898445,0.58435675,105570.0,105560.0,0.33516]
[1749008898659,0.56660744,105570.0,105560.0,0.33516]
[1749008898862,0.58435675,105570.0,105560.0,0.33516]
[1749008899086,0.63982995,105570.0,105560.0,0.33516]
[1749008899266,0.62411616,105570.0,105560.0,0.33516]
[1749008899506,0.60636685,105570.0,105560.0,0.62644]
[1749008899928,0.62411616,105570.0,105560.0,0.62644]
[1749008900128,0.53325882,105570.0,105560.0,0.62644]
[1749008901232,0.56613168,105570.0,105560.0,0.62644]
[1749008901550,0.54838237,105570.0,105560.0,0.62644]
[1749008902187,0.56613168,105570.0,105560.0,0.62644]
[1749008902399,0.54838237,105570.0,105560.0,0.62644]
[1749008902620,0.65458012,105570.0,105560.0,0.2454]
[1749008902879,0.65303081,105570.0,105560.0,0.62644]
[1749008903094,0.65303194,105570.0,105560.0,0.62644]
[1749008903303,0.6885305,105570.0,105560.0,0.62644]
[1749008903518,0.68853052,105570.0,105560.0,0.62644]
[1749008903724,0.67078122,105570.0,105560.0,0.62644]
[1749008904142,0.67078122,105570.0,105560.0,0.33516]
[1749008904352,0.67078122,105570.0,105560.0,0.62644]
[1749008904795,0.67078122,105570.0,105560.0,0.2454]
[1749008905005,0.67718671,105570.0,105560.0,0.33516]
[1749008905237,0.70943739,105570.0,105560.0,0.6264]
[1749008905703,0.71437697,105570.0,105560.0,0.33516]
[1749008905913,0.71437697,105570.0,105560.0,0.62644]
[1749008906336,0.71437697,105570.0,105560.0,0.33516]
[1749008906549,0.71437697,105570.0,105560.0,0.6264]
[1749008906972,0.74880394,105570.0,105560.0,0.6264]
[1749008907188,0.75788041,105570.0,105560.0,0.6264]
[1749008907402,0.71437838,105570.0,105560.0,0.6264]
[1749008907822,0.66437838,105570.0,105560.0,0.2454]
[1749008908041,0.68212909,105570.0,105560.0,0.6264]
[1749008908230,0.67103489,105570.0,105560.0,0.6264]